bitfinex-derivatives/quotes_SOLF0:USTF0_20250820
["timestamp","ask_amount","ask_price","bid_price","bid_amount"]
[1755654448190,5.6212,177.91,177.89,3.1624911]
[1755654448490,3.0,177.93,177.86,3.1624911]
[1755654448897,5.6223,177.87,177.86,3.1624911]
[1755654449095,6.22569253,178.02,177.86,20.0824911]
[1755654449298,3.0,178.14,178.02,0.24]
[1755654449501,3.0,178.14,178.07,3.1624911]
[1755654450300,5.6156,178.09,178.07,3.1624911]
[1755654450595,3.0,178.14,178.07,3.1624911]
[1755654450788,3.0,178.12,178.07,3.1624911]
[1755654450992,3.0,178.16,178.1,3.1624911]
[1755654451188,5.6139,178.14,178.1,3.1624911]
[1755654451394,3.0,178.16,178.1,3.1624911]
[1755654451593,3.0,178.16,178.13,3.1624911]
[1755654452197,145.38,178.22,178.13,3.1624911]
[1755654452198,3.0,178.21,178.13,3.1624911]
[1755654452392,5.6134,178.16,178.1,4.90116396]
[1755654452595,3.0,178.18,178.1,4.90116396]
[1755654452899,5.6134,178.16,178.1,10.51616396]
[1755654453092,3.0,178.18,178.1,4.90116396]
[1755654453603,5.6134,178.15,178.1,5.14116396]
[1755654453790,3.0,178.18,178.11,0.24]
[1755654453999,5.614,178.14,178.11,0.24]
[1755654454897,5.6141,178.13,178.11,0.24]
[1755654455094,3.0,178.18,178.11,0.24]
[1755654455801,3.0,178.19,178.11,0.24]
[1755654457402,5.6135,178.15,178.1,4.90116396]
[1755654457605,3.0,178.19,178.13,0.24]
[1755654458098,5.6137,178.14,178.07,145.08]
[1755654458296,5.6137,178.14,178.11,5.14116396]
[1755654458496,3.0,178.19,178.11,4.90116396]
[1755654458698,3.0,178.22,178.12,0.24]
[1755654458893,3.0,178.22,178.15,4.90116396]
[1755654459197,5.6131,178.17,178.12,0.24]
[1755654459392,5.6131,178.17,178.13,0.24]
[1755654459592,3.0,178.22,178.12,0.24]
[1755654459800,5.6127,178.18,178.12,5.8541]
[1755654460203,3.0,178.22,178.12,0.24]
[1755654460393,156.1785,178.29,178.16,0.24]
[1755654460394,5.6119,178.2,178.16,0.24]
[1755654460600,5.6119,178.2,178.17,0.24]
[1755654460906,3.0,178.25,178.17,0.24]
[1755654461499,5.6116,178.21,178.17,0.24]
[1755654461695,3.0,178.25,178.16,0.24]
[1755654462101,5.6112,178.22,178.16,0.24]
[1755654462294,3.0,178.25,178.16,0.24]
[1755654462500,3.0,178.29,178.19,5.14116396]
[1755654463506,5.6112,178.23,178.19,5.14116396]
[1755654463702,5.6112,178.23,178.2,0.24]
[1755654464802,5.64819406,178.23,178.2,0.24]
[1755654465209,5.64819406,178.23,178.21,0.24]
[1755654465710,5.64819406,178.23,178.19,4.90116396]
[1755654465711,3.03699406,178.23,178.19,4.90116396]
[1755654465908,3.03699406,178.23,178.15,5.14116396]
[1755654466108,3.03699406,178.23,178.15,0.24]
[1755654466309,5.6126,178.18,178.15,0.24]
[1755654466510,5.6126,178.18,178.16,0.24]
[1755654467512,3.0,178.23,178.15,5.14116396]
[1755654467911,3.0,178.3,178.15,5.14116396]
[1755654468106,5.6121,178.2,178.16,0.24]
[1755654468516,5.6121,178.2,178.17,0.24]
[1755654469614,3.0,178.22,178.15,5.14116396]
[1755654471418,5.6124,178.19,178.16,0.24]
[1755654471822,5.6119,178.2,178.16,0.24]
[1755654472015,11.2173,178.31,178.16,0.24]
[1755654472218,3.0,178.3,178.16,0.24]
[1755654472418,5.6114,178.22,178.19,0.24]
[1755654472622,5.6114,178.22,178.2,0.24]
[1755654472922,5.6114,178.22,178.16,0.24]
[1755654473123,3.0,178.27,178.18,0.24]
[1755654473124,5.6116,178.21,178.18,0.24]
[1755654473614,5.6116,178.21,178.15,5.14116396]
[1755654474122,5.6116,178.21,178.16,5.6129]
[1755654474324,3.0,178.27,178.19,4.90116396]
[1755654474622,3.0,178.27,178.13,149.54116396]
[1755654474820,3.0,178.31,178.13,149.54116396]
[1755654475321,4.90116396,178.32,178.13,149.54116396]
[1755654475322,3.0,178.2,178.13,149.54116396]
[1755654476819,3.0,178.2,178.13,4.90116396]
[1755654477027,3.0,178.2,178.11,377.5]
[1755654477525,5.6143,178.13,178.11,377.5]
[1755654479327,5.6138,178.14,178.11,377.72]
[1755654480225,5.6134,178.15,178.12,0.22]
[1755654480522,3.07,178.21,178.13,5.12116396]
[1755654481323,0.03652881,178.19,178.13,5.12116396]
[1755654482127,3.07,178.18,178.13,4.90116396]
[1755654482331,3.07,178.18,178.05,5.12116396]
[1755654482631,3.07,178.18,178.06,144.62]
[1755654482931,3.07,178.18,178.05,5.12116396]
[1755654482932,3.07,178.14,178.05,4.90116396]
[1755654483132,3.07,178.14,178.05,149.52116396]
[1755654483831,5.6158,178.08,178.06,0.22]
[1755654484126,3.07,178.14,178.06,0.22]
[1755654484327,5.6145,178.12,178.06,0.22]
[1755654484529,5.6145,178.12,178.08,5.8354]
[1755654484729,3.07,178.14,178.05,4.90116396]
[1755654484932,5.6159,178.07,178.06,144.62]
[1755654485334,3.07,178.11,178.06,144.62]
[1755654485535,5.6155,178.09,178.06,144.62]
[1755654485737,11.2246,178.19,178.06,144.62]
[1755654485932,3.07,178.11,178.06,144.62]
[1755654486334,5.6157,178.08,178.06,144.62]
[1755654487437,3.07,178.18,178.04,144.6]
[1755654487833,5.6168,178.05,178.04,144.6]
[1755654488136,8.6868,178.05,178.04,144.6]
[1755654489035,3.07,178.05,178.01,144.62]
[1755654489535,3.07,178.05,177.99,377.42]
[1755654489733,3.07,178.05,178.0,144.82]
[1755654490234,3.07,178.05,178.01,0.22]
[1755654490536,5.6172,178.04,178.01,0.22]
[1755654490835,3.07,178.05,178.01,0.22]
[1755654491635,11.2292,178.12,178.0,144.6]
[1755654491829,3.07,178.04,178.0,144.82]
[1755654492033,3.07,178.01,177.98,144.62]
[1755654492339,3.07,178.01,177.98,147.77564881]
[1755654492839,5.6186,177.99,177.98,147.77564881]
[1755654493132,20.07564881,178.2,177.93,4.71383149]
[1755654493133,3.07,178.05,177.93,4.71383149]
[1755654493338,3.07,178.05,177.92,147.77564881]
[1755654493339,5.6203,177.93,177.92,147.77564881]
[1755654493933,5.6203,177.93,177.92,147.99564881]
[1755654494434,5.6203,177.93,177.92,144.62]
[1755654495041,5.6207,177.92,177.91,4.93383149]
[1755654495340,5.6207,177.92,177.91,144.86]
[1755654496033,3.07,177.98,177.91,149.57383149]
[1755654496232,3.07,177.98,177.91,144.86]
[1755654496428,5.6206,177.93,177.91,144.86]
[1755654496632,5.6206,177.93,177.91,144.64]
[1755654496833,5.6206,177.93,177.92,0.22]
[1755654497033,5.6201,177.94,177.92,0.22]
[1755654497537,5.6203,177.93,177.92,0.22]
[1755654498439,5.6207,177.92,177.91,144.64]
[1755654498832,3.07,178.03,177.91,144.86]
[1755654499033,5.6199,177.95,177.92,0.22]
[1755654499533,3.07,177.99,177.93,0.22]
[1755654499734,5.6194,177.96,177.93,0.22]
[1755654500436,3.07,178.08,177.94,4.91252017]
[1755654500739,3.07,178.08,177.95,144.86]
[1755654500938,5.6179,178.01,177.96,5.6191]
[1755654501242,3.07,178.04,177.98,4.91252017]
[1755654501444,5.6173,178.03,178.0,0.22]
[1755654501839,3.07,178.04,178.0,0.22]
[1755654502140,3.07,178.13,178.02,4.91252017]
[1755654502639,3.07,178.12,178.04,4.91252017]
[1755654502839,3.07,178.12,178.05,144.68]
[1755654503043,8.6862,178.06,178.05,144.68]
[1755654503743,3.07,178.1,178.05,144.9]
[1755654504241,3.07,178.09,178.05,144.68]
[1755654504742,3.07,178.14,178.0,4.91252017]
[1755654505044,3.07,178.12,177.97,0.22]
[1755654505236,3.07,178.12,177.98,144.66]
[1755654505447,4.91252017,178.12,177.98,144.66]
[1755654505744,3.07,178.11,177.98,144.66]
[1755654505935,5.6174,178.03,178.0,5.6181]
[1755654506138,5.6174,178.03,178.0,5.8381]
[1755654506341,3.07,178.08,178.0,0.22]
[1755654507533,3.07,178.08,178.0,4.91252017]
[1755654507743,3.07,178.14,178.01,0.22]
[1755654508444,3.07,178.14,178.04,5.13252017]
[1755654508646,3.07,178.14,178.05,144.62]
[1755654508838,5.615,178.1,178.06,5.6161]
[1755654509040,3.07,178.14,178.07,0.22]
[1755654509650,5.6141,178.13,178.09,5.6152]
[1755654509947,2.94,178.18,178.09,0.22]
[1755654510143,2.94,178.18,178.09,5.835]
[1755654510444,2.94,178.18,178.09,0.22]
[1755654512449,5.6144,178.12,178.09,0.22]
[1755654512650,2.94,178.18,178.1,0.22]
[1755654512947,5.614,178.13,178.1,0.22]
[1755654513950,2.94,178.18,178.1,0.22]
[1755654515046,2.94,178.18,178.09,0.22]
[1755654515242,2.94,178.18,178.12,4.91252017]
[1755654515446,2.94,178.18,178.13,5.614]
[1755654515447,5.6129,178.17,178.13,5.614]
[1755654515753,5.6129,178.17,178.13,5.834]
[1755654516351,5.6129,178.17,178.13,0.22]
[1755654516956,5.6129,178.17,178.14,0.22]
[1755654517147,5.6129,178.17,178.15,0.22]
[1755654518757,2.94,178.22,178.16,5.13252017]
[1755654518955,2.94,178.27,178.16,5.13252017]
[1755654519257,5.6114,178.22,178.16,5.13252017]
[1755654519559,5.6114,178.22,178.2,0.04028069]
[1755654519745,0.03964545,178.23,178.2,0.04028069]
[1755654519950,0.03964545,178.23,178.2,10.78440086]
[1755654520457,0.03964545,178.23,178.21,0.22]
[1755654520956,2.94,178.27,178.21,0.22]
[1755654521452,2.94,178.34,178.23,5.6108]
[1755654522252,5.6095,178.28,178.27,0.04179829]
[1755654525357,8.5495,178.28,178.27,0.04179829]
[1755654526152,5.3895,178.28,178.27,0.22009829]
[1755654526457,2.94,178.39,178.3,5.6086]
[1755654526656,2.94,178.39,178.31,2.06271075]
[1755654526851,2.94,178.39,178.34,4.91252017]
[1755654527050,2.94,178.39,178.35,2.06167967]
[1755654527245,2.94,178.39,178.34,4.91252017]
[1755654527246,2.94,178.43,178.34,4.91252017]
[1755654527449,2.94,178.43,178.35,2.05842827]
[1755654527651,2.94,178.43,178.34,10.51972017]
[1755654527847,2.94,178.43,178.35,0.03645534]
[1755654528851,2.94,178.47,178.35,0.03645534]
[1755654529060,2.94,178.47,178.38,4.91252017]
[1755654529246,8.5437,178.47,178.38,10.51842017]
[1755654529451,2.94,178.47,178.38,10.51842017]
[1755654529659,8.5437,178.47,178.41,0.03756631]
[1755654529858,2.94,178.47,178.41,0.03756631]
[1755654530161,145.75558241,178.53,178.41,0.03756631]
[1755654530355,2.94,178.52,178.41,0.03756631]
[1755654530561,2.94,178.52,178.36,4.91252017]
[1755654530947,2.94,178.46,178.36,4.91252017]
[1755654531155,2.94,178.5,178.4,4.91252017]
[1755654531355,8.5425,178.5,178.43,5.6045]
[1755654531857,2.94,178.5,178.42,0.03956127]
[1755654532450,5.6028,178.49,178.42,5.64446127]
[1755654532957,2.94,178.5,178.42,0.03956127]
[1755654534164,8.5439,178.46,178.42,0.03956127]
[1755654534651,8.5439,178.46,178.37,4.91252017]
[1755654534858,2.94,178.46,178.42,0.04032839]
[1755654535057,2.94,178.54,178.42,0.04032839]
[1755654535455,2.94,178.54,178.41,4.91252017]
[1755654535963,2.94,178.54,178.46,0.03913591]
[1755654536559,2.94,178.54,178.46,4.95165608]
[1755654537359,2.94,178.58,178.46,4.95165608]
[1755654537561,2.94,178.58,178.48,5.603]
[1755654537757,2.94,178.58,178.46,4.91252017]
[1755654538055,5.6014,178.54,178.51,0.04004661]
[1755654538264,8.5414,178.54,178.51,0.04004661]
[1755654538460,3.13,178.59,178.51,0.04004661]
[1755654538653,3.13,178.55,178.51,0.04004661]
[1755654538853,3.13,178.59,178.51,0.04004661]
[1755654539158,5.6014,178.54,178.51,0.04004661]
[1755654539462,3.13,178.54,178.51,0.04004661]
[1755654540065,0.04121105,178.55,178.51,0.04004661]
[1755654540466,3.13,178.53,178.51,0.04004661]
[1755654540765,0.04121105,178.55,178.51,0.04004661]
[1755654541465,0.04121105,178.55,178.51,5.64194661]
[1755654541966,0.04121105,178.55,178.51,0.04004661]
[1755654542167,3.13,178.54,178.51,0.04004661]
[1755654542558,8.7313,178.54,178.51,0.04004661]
[1755654542857,3.13,178.54,178.51,0.04004661]
[1755654543054,3.13,178.53,178.51,0.04004661]
[1755654543257,0.04121105,178.55,178.51,0.04004661]
[1755654543566,3.13,178.52,178.51,0.04004661]
[1755654543762,3.13,178.54,178.51,0.04004661]
[1755654544060,3.13,178.49,178.38,381.73252017]
[1755654544262,3.13,178.53,178.42,4.91252017]
[1755654544662,3.13,178.57,178.46,4.91252017]
[1755654545071,5.6015,178.53,178.46,4.91252017]
[1755654545261,3.13,178.57,178.46,4.91252017]
[1755654545461,3.13,178.62,178.5,4.91252017]
[1755654545661,3.13,178.55,178.5,4.91252017]
[1755654545857,155.9961,178.65,178.45,144.8]
[1755654545858,3.13,178.54,178.46,4.91252017]
[1755654546061,3.13,178.54,178.42,221.94000719]
[1755654546360,3.13,178.54,178.42,217.02748702]
[1755654546765,3.13,178.49,178.42,222.63238702]
[1755654547162,3.13,178.53,178.42,221.94000719]
[1755654547367,3.13,178.63,178.5,4.91252017]
[1755654547563,3.13,178.63,178.54,4.91252017]
[1755654547765,144.7,178.73,178.61,5.5988]
[1755654547766,3.13,178.73,178.61,5.5988]
[1755654547964,3.13,178.73,178.59,4.44619619]
[1755654548161,3.13,178.73,178.62,4.91252017]
[1755654548470,3.13,178.73,178.55,4.66903998]
[1755654548471,3.13,178.73,178.57,14.02775634]
[1755654548668,5.5988,178.62,178.58,4.44619619]
[1755654548975,3.13,178.62,178.56,5.6005]
[1755654549267,3.13,178.62,178.54,10.04488931]
[1755654549465,3.13,178.62,178.55,4.44388931]
[1755654549667,3.13,178.62,178.54,4.44388931]
[1755654550171,5.5995,178.6,178.53,4.91252017]
[1755654550361,5.5995,178.6,178.54,4.44388931]
[1755654550563,377.57420321,178.76,178.54,4.44388931]
[1755654550564,3.13,178.71,178.54,4.44388931]
[1755654550771,3.13,178.71,178.57,4.91252017]
[1755654550966,3.13,178.71,178.59,5.5995]
[1755654551167,3.13,178.71,178.57,4.91252017]
[1755654551368,3.13,178.64,178.54,4.44378506]
[1755654551568,3.13,178.64,178.55,9.68204471]
[1755654551768,3.13,178.64,178.56,5.23825965]
[1755654551966,3.13,178.64,178.53,4.91252017]
[1755654552271,3.13,178.64,178.54,9.68316327]
[1755654552472,3.13,178.64,178.55,9.68316327]
[1755654552668,5.5998,178.59,178.56,5.23871301]
[1755654552872,3.13,178.64,178.54,4.44631821]
[1755654553171,3.13,178.64,178.53,4.91252017]
[1755654553172,3.13,178.64,178.55,9.68682415]
[1755654553371,3.13,178.64,178.56,9.68682415]
[1755654553569,16.10342017,178.73,178.57,14.59934432]
[1755654553570,3.13,178.72,178.57,14.59934432]
[1755654553872,3.13,178.72,178.58,9.68682415]
[1755654554073,3.13,178.72,178.59,5.24050594]
[1755654554269,3.13,178.72,178.57,4.91252017]
[1755654554270,3.13,178.72,178.61,4.91252017]
[1755654554480,3.13,178.72,178.62,9.68682415]
[1755654554770,3.13,178.72,178.63,5.24050594]
[1755654554971,3.13,178.72,178.62,4.44631821]
[1755654555168,3.13,178.72,178.63,5.23867492]
[1755654555472,3.13,178.72,178.65,4.91252017]
[1755654555670,3.13,178.75,178.58,4.66903998]
[1755654557074,3.13,178.69,178.63,5.23714547]
[1755654557379,377.5741623,178.76,178.63,5.23714547]
[1755654557380,3.13,178.74,178.64,5.23714547]
[1755654557676,3.13,178.74,178.65,5.23714547]
[1755654557872,3.13,178.74,178.66,5.23714547]
[1755654558171,3.13,178.74,178.67,5.23714547]
[1755654558477,3.13,178.74,178.68,5.2414513]
[1755654558672,3.13,178.74,178.69,5.2414513]
[1755654558970,3.13,178.77,178.64,4.44477013]
[1755654559274,3.13,178.77,178.65,9.68275152]
[1755654559476,3.13,178.72,178.66,5.23798139]
[1755654559770,3.13,178.72,178.63,4.91252017]
[1755654559771,3.13,178.76,178.67,5.23798139]
[1755654560073,3.13,178.76,178.68,5.24106804]
[1755654560278,3.13,178.76,178.63,4.91252017]
[1755654560476,3.13,178.76,178.64,9.69219955]
[1755654560674,3.13,178.76,178.65,9.69219955]
[1755654560869,3.13,178.76,178.66,5.24349394]
[1755654561069,3.13,178.76,178.67,5.24349394]
[1755654561267,3.13,178.76,178.68,5.24349394]
[1755654561474,3.13,178.76,178.61,4.66903998]
[1755654561673,3.13,178.76,178.62,11.94323573]
[1755654561967,3.13,178.76,178.63,11.94318949]
[1755654562176,5.5972,178.67,178.64,9.7005865]
[1755654562372,5.5972,178.67,178.65,9.7005865]
[1755654562569,3.13,178.72,178.66,9.7005865]
[1755654562774,3.13,178.72,178.67,9.7005865]
[1755654562973,3.13,178.72,178.68,5.24768087]
[1755654563178,3.13,178.71,178.69,5.24768087]
[1755654563378,8.7259,178.71,178.7,5.24768087]
[1755654563774,5.5974,178.66,178.65,4.4602055]
[1755654563977,5.5974,178.66,178.65,9.7172487]
[1755654564174,3.13,178.71,178.65,11.96531628]
[1755654564382,3.13,178.71,178.66,7.3902055]
[1755654564579,3.13,178.78,178.67,4.4602055]
[1755654564775,3.13,178.78,178.68,4.4602055]
[1755654564971,3.13,178.78,178.69,4.4602055]
[1755654565173,5.5964,178.7,178.66,2.93]
[1755654565482,5.5964,178.7,178.67,4.4668333]
[1755654565682,5.5964,178.7,178.68,4.4668333]
[1755654565890,5.5964,178.7,178.69,4.4668333]
[1755654566087,3.13,178.78,178.69,7.3968333]
[1755654566278,3.13,178.78,178.7,4.4668333]
[1755654566583,5.5951,178.74,178.71,7.3968333]
[1755654566776,5.5951,178.74,178.72,4.4668333]
[1755654566981,3.13,178.78,178.73,4.4668333]
[1755654567281,3.13,178.82,178.74,7.3968333]
[1755654567485,3.13,178.82,178.75,4.4668333]
[1755654567688,5.5935,178.79,178.76,9.6460734]
[1755654567881,3.13,178.81,178.77,4.4668333]
[1755654568078,3.13,178.81,178.78,4.4668333]
[1755654568282,5.593,178.8,178.79,4.4668333]
[1755654570890,5.593,178.8,178.79,7.5568333]
[1755654571292,5.593,178.8,178.79,14.47893456]
[1755654572093,5.593,178.8,178.79,9.80989458]
[1755654572397,5.593,178.8,178.79,6.71989458]
[1755654573194,2.93,178.9,178.79,14.72241475]
[1755654573388,2.93,178.9,178.81,4.61432718]
[1755654573589,2.93,178.9,178.82,6.71989458]
[1755654573785,2.93,178.9,178.83,6.71989458]
[1755654574094,2.93,178.9,178.84,6.71798831]
[1755654574295,2.93,178.9,178.85,4.4668333]
[1755654574597,2.93,178.9,178.86,4.4668333]
[1755654574794,5.5904,178.89,178.87,4.4668333]
[1755654574985,5.5904,178.89,178.88,4.46711185]
[1755654575590,379.11,178.96,178.88,4.46711185]
[1755654575897,379.11,178.96,178.89,9.6277251]
[1755654576096,379.11,178.96,178.86,3.09]
[1755654576290,379.11,178.96,178.87,9.62025267]
[1755654576486,379.11,178.96,178.88,9.62025267]
[1755654576693,379.11,178.96,178.89,4.461542]
[1755654576894,5.5903,178.89,178.87,3.09]
[1755654577096,5.5903,178.89,178.88,9.61900012]
[1755654577592,5.59,178.9,178.88,9.61652532]
[1755654577797,145.07279918,178.99,178.89,8.24487254]
[1755654577998,2.93,178.98,178.9,5.15487254]
[1755654578194,2.93,178.98,178.91,5.15487254]
[1755654578501,2.93,178.98,178.89,3.09]
[1755654578502,2.93,178.98,178.92,5.15487254]
[1755654578695,2.93,178.98,178.89,3.09]
[1755654578895,2.93,178.98,178.9,5.15184545]
[1755654579096,2.93,178.98,178.91,5.15184545]
[1755654579299,2.93,178.98,178.92,5.15184545]
[1755654579498,2.93,178.98,178.89,3.09]
[1755654579698,2.93,178.98,178.9,5.15144691]
[1755654579898,2.93,178.98,178.91,5.15144691]
[1755654580101,2.93,178.98,178.92,5.15144691]
[1755654580296,5.5895,178.92,178.87,4.91252017]
[1755654580500,5.5895,178.92,178.9,3.09]
[1755654580697,5.5895,178.92,178.91,5.15102927]
[1755654581291,5.589,178.93,178.91,8.24102927]
[1755654581503,2.93,179.02,178.92,8.24102927]
[1755654581703,4.91252017,179.14,178.95,4.91252017]
[1755654581892,2.93,179.08,178.96,13.82902927]
[1755654582096,2.93,179.08,178.97,7.39280703]
[1755654582403,2.93,179.08,178.95,4.91252017]
[1755654582404,2.93,179.13,179.0,8.6766]
[1755654582598,2.93,179.13,179.02,3.09]
[1755654582903,2.93,179.13,179.03,5.15102927]
[1755654583090,2.93,179.13,179.04,5.15102927]
[1755654583291,2.93,179.13,179.05,5.12880586]
[1755654583500,2.93,179.13,179.02,8.6761]
[1755654583695,150.16500526,179.17,179.04,3.09]
[1755654583903,5.5842,179.09,179.05,5.1290553]
[1755654584090,5.5842,179.09,179.06,5.1290553]
[1755654584298,2.93,179.17,179.07,3.09]
[1755654585197,5.5842,179.09,179.07,3.09]
[1755654585505,2.93,179.17,179.01,3.09]
[1755654585797,376.83191772,179.19,179.02,5.11881425]
[1755654585798,4.91252017,179.14,179.02,5.11881425]
[1755654585998,2.93,179.13,178.97,3.09]
[1755654586204,144.74,179.13,178.98,5.12074174]
[1755654586501,2.93,179.12,178.99,5.12074174]
[1755654586696,2.93,179.12,178.99,8.00252017]
[1755654586898,2.93,179.12,179.0,5.11589002]
[1755654587196,0.03681441,179.07,178.95,221.66928786]
[1755654587398,2.96681441,179.07,178.96,5.1156516]
[1755654587605,5.5862,179.02,178.97,5.1156516]
[1755654587803,5.5862,179.02,178.99,3.09]
[1755654588104,0.03644492,179.03,178.99,3.09]
[1755654588403,5.5862,179.02,178.99,3.09]
[1755654588701,0.03644492,179.03,178.95,218.57928786]
[1755654588702,0.03644492,179.03,178.96,3.09]
[1755654588901,0.03644492,179.03,178.97,10.70155652]
[1755654589202,0.03644492,179.03,179.0,3.09]
[1755654589593,0.03644492,179.03,178.96,4.91252017]
[1755654589798,0.03644492,179.03,178.97,8.20580848]
[1755654589993,0.03644492,179.03,178.99,3.09]
[1755654590194,0.03644492,179.03,178.96,4.91252017]
[1755654590397,5.62234492,179.03,178.99,3.09]
[1755654590602,5.62234492,179.03,178.97,3.09]
[1755654590797,0.03644492,179.03,178.98,5.11671492]
[1755654591002,2.93,179.12,179.01,3.09]
[1755654591206,2.93,179.12,179.02,5.11671492]
[1755654591398,2.93,179.12,179.03,5.11671492]
[1755654591606,2.93,179.12,179.01,3.09]
[1755654591806,2.93,179.12,179.02,5.11569128]
[1755654592001,2.93,179.12,179.01,3.09]
[1755654592202,2.93,179.12,179.05,0.03783376]
[1755654592603,8.5149,179.06,179.05,0.03783376]
[1755654594410,5.5849,179.06,179.05,0.03783376]
[1755654594601,8.5149,179.06,179.05,0.03783376]
[1755654594804,5.5849,179.06,179.05,0.03783376]
[1755654595805,8.5149,179.06,179.05,0.03783376]
[1755654599011,5.5849,179.06,179.05,0.03783376]
[1755654599709,5.5865,179.01,178.97,3.01]
[1755654599903,0.04121006,179.07,178.98,8.14276896]
[1755654600105,0.04121006,179.07,178.99,5.13276896]
[1755654600410,3.0,179.06,179.0,5.13498713]
[1755654600610,3.0,179.06,178.94,380.77252017]
[1755654600804,3.0,179.06,178.95,5.13617729]
[1755654601011,0.03939253,179.05,178.97,3.01]
[1755654601213,5.5863,179.02,178.99,3.01]
[1755654601412,0.03939253,179.05,179.01,3.01]
[1755654601617,0.03939253,179.05,179.02,8.14617729]
[1755654601806,5.5856,179.04,179.03,5.13617729]
[1755654602310,0.03939253,179.05,179.03,8.14617729]
[1755654602515,0.03939253,179.05,179.04,8.14617729]
[1755654602905,3.0,179.14,179.05,3.01]
[1755654603116,3.0,179.18,179.06,10.04869746]
[1755654603312,3.0,179.18,179.08,3.01]
[1755654603517,5.5829,179.13,179.1,3.01]
[1755654603819,3.0,179.22,179.11,8.14092547]
[1755654604010,3.0,179.22,179.12,5.13092547]
[1755654604213,3.0,179.22,179.08,3.01]
[1755654604408,3.0,179.22,179.1,3.01]
[1755654604609,3.0,179.22,179.15,0.03573908]
[1755654606017,5.5817,179.16,179.15,0.03573908]
[1755654607013,8.5817,179.16,179.15,0.03573908]
[1755654607511,5.5815,179.17,179.15,0.03573908]
[1755654607716,3.0,179.2,179.15,0.03573908]
[1755654607920,3.0,179.2,179.08,4.91252017]
[1755654607921,3.0,179.23,179.08,3.01]
[1755654608218,3.0,179.18,179.09,8.14520566]
[1755654608418,3.0,179.18,179.1,5.13520566]
[1755654608607,3.0,179.18,179.11,5.13520566]
[1755654608812,3.0,179.18,179.12,5.13520566]
[1755654609013,3.0,179.18,179.13,5.13520566]
[1755654609210,5.5823,179.15,179.14,5.13520566]
[1755654610624,5.5824,179.14,179.13,0.03538572]
[1755654610811,5.5824,179.14,179.13,5.08202995]
[1755654612720,5.5824,179.14,179.13,0.03538572]
[1755654612920,5.5822,179.15,179.13,5.22140808]
[1755654613116,3.0,179.22,179.14,8.19602236]
[1755654613320,3.0,179.22,179.15,5.18602236]
[1755654613523,3.0,179.22,179.16,5.18608381]
[1755654613726,3.0,179.22,179.17,5.18469699]
[1755654613915,5.5808,179.19,179.18,5.18469699]
[1755654615325,149.62980627,179.26,179.18,10.40827609]
[1755654615524,149.62980627,179.26,179.19,7.39827609]
[1755654615823,5.5801,179.22,179.2,7.39827609]
[1755654616021,3.0,179.25,179.21,7.39827609]
[1755654616228,3.0,179.24,179.22,5.18469699]
[1755654616430,3.0,179.24,179.23,5.18469699]
[1755654616620,8.5793,179.24,179.23,5.18469699]
[1755654617326,8.5793,179.24,179.23,9.699e-05]
[1755654617521,3.56,179.24,179.13,3.01]
[1755654617836,3.0,179.23,179.22,0.03578137]
[1755654618128,3.0,179.23,179.13,3.01]
[1755654618322,3.0,179.23,179.14,2.21697038]
[1755654618527,5.5819,179.16,179.15,2.21697038]
[1755654618718,3.0,179.23,179.15,5.22697038]